fUSD/lending_fUSD_20241001
["ID","MTS","AMOUNT","RATE_DAILY","PERIOD"]
[339621912,1727758244723,-204.551375,0.00012891,2]
[339621913,1727758244732,-204.551375,0.00012891,2]
[339621914,1727758244741,-151.0,0.00012891,2]
[339621915,1727758244750,-172.195698,0.00012891,2]
[339621916,1727758244759,-172.195698,0.00012891,2]
[339621917,1727758244768,-459.9641661,0.00012891,2]
[339621918,1727758244777,-536.6440266,0.00012891,2]
[339621919,1727758244786,-613.3238871,0.00012891,2]
[339621920,1727758244795,-690.0037476,0.00012891,2]
[339621921,1727758244804,-766.6836081,0.00012891,2]
[339621922,1727758244813,-642.411737,0.00012891,2]
[339621923,1727758244822,-642.411737,0.00012891,2]
[339621924,1727758244831,-7092.34619,0.00012891,2]
[339621925,1727758244840,-8274.6994175,0.00012891,2]
[339621926,1727758244849,-9457.052645,0.00012891,2]
[339621927,1727758244858,-10639.4058726,0.00012891,2]
[339621928,1727758244867,-11821.7591001,0.00012891,2]
[339621929,1727758244877,-331.951674,0.00012891,2]
[339621930,1727758244886,-331.951674,0.00012891,2]
[339621931,1727758244895,-151.0,0.00012891,2]
[339621932,1727758244903,-442.549199,0.00012891,2]
[339621933,1727758244913,-442.549199,0.00012891,2]
[339621934,1727758244922,-151.0,0.00012891,2]
[339621935,1727758244932,-2550.11899817,0.00012895,2]
[339621936,1727758244941,-25240.49569068,0.00012899,2]
[339621937,1727758244950,-3771.92226568,0.00012899,2]
[339621938,1727758244960,-1000.0,0.00012899,2]
[339621939,1727758244970,-1007.4251,0.00012899,2]
[339621940,1727758244979,-151.0,0.00012899,2]
[339621941,1727758244989,-1660.81769714,0.000129,2]
[339621942,1727758244999,-1594612.04447112,0.000129,2]
[339621943,1727758245008,-133591.12184549,0.000129,2]
[339621944,1727758245155,-319.64,0.000129,2]
[339621945,1727758245167,-794.64838612,0.000129,2]
[339621946,1727758245205,-1586.930136,0.0001115,2]
[339621947,1727758245214,-554909.88235593,0.000129,2]
[339621948,1727758245232,-318.036336,0.000129,2]
[339621949,1727758245243,-1771.36480917,0.000129,2]
[339621950,1727758245254,-428.63424355,0.000129,2]
[339621951,1727758245266,-402.265,0.000129,2]
[339621952,1727758245664,-327.633,0.00012329,2]
[339621953,1727758245676,-1422.87666,0.00012329,2]
[339621954,1727758245686,-1750.50966,0.000124,2]
[339621955,1727758245694,-1750.50966,0.00012876,2]
[339621956,1727758245704,-1750.50966,0.00012891,2]
[339621957,1727758245713,-3711.37964842,0.000129,2]
[339621958,1727758245729,-1322.97500001,0.000129,2]
[339621959,1727758245740,-2081.88552,0.000129,2]
[339621962,1727758258533,1039.3448,9.914e-05,2]
[339621964,1727758281971,500.0,8.972e-05,2]
[339621965,1727758372425,208.36,9.589e-05,2]
[339621966,1727758635725,1355.8,9.626e-05,2]
[339621967,1727758920827,173.63,9.589e-05,2]
[339621968,1727759002857,202.30064847,9.968e-05,2]
[339621969,1727759257010,1295.51,9.541e-05,2]
[339621992,1727759431653,-800.0,0.00010068,2]
[339621994,1727759431662,-700.0,0.00010068,2]
[339621997,1727759431675,-1012.1274,0.000108,2]
[339621999,1727759431684,-155.0703294,0.00010899,2]
[339622001,1727759431693,-432.3699,0.000109,2]
[339622003,1727759431704,-6800.43237046,0.000109,2]
[339622005,1727759431716,-12829.60142954,0.000109,2]
[339622007,1727759431725,-40210.39857051,0.000109,2]
[339622010,1727759431737,-150369.32402949,0.000109,2]
[339622012,1727759431746,-261.8982,0.000109,2]
[339622014,1727759431756,-1460.7213,0.000109,2]
[339622016,1727759431765,-500.0,0.00010912,2]
[339622018,1727759431774,-500.0,0.00011164,2]
[339622019,1727759431784,-155.07032936,0.000113,2]
[339622021,1727759431793,-800.0,0.00011438,2]
[339622023,1727759431802,-700.0,0.00011438,2]
[339622025,1727759431812,-1765.78,0.00011441,2]
[339622027,1727759431821,-2393.55,0.00011441,2]
[339622029,1727759431830,-5063.31,0.00011441,2]
[339622031,1727759431840,-166.11,0.00011441,2]
[339622033,1727759431849,-890.24,0.00011441,2]
[339622035,1727759431858,-1825.78,0.00011441,2]
[339622038,1727759431868,-194.34,0.00011464,2]
[339622039,1727759431878,-1000.0,0.00011467,2]
[339622040,1727759431887,-171.55,0.0001147,2]
[339622042,1727759431896,-214.97,0.00011487,2]
[339622044,1727759431905,-18578.84,0.00011532,2]
[339622045,1727759431915,-500.0,0.0001154,2]
[339622046,1727759431924,-163.35,0.00011553,2]
[339622047,1727759431933,-150.0,0.00011589,2]
[339622048,1727759431944,-250.0,0.00011625,2]
[339622049,1727759431958,-250.0,0.00011641,2]
[339622050,1727759431967,-250.0,0.00011678,2]
[339622051,1727759431976,-227.0,0.000117,2]
[339622052,1727759431986,-554.0,0.00011707,2]
[339622053,1727759431995,-1899.507,0.00011707,2]
[339622054,1727759432004,-286.036,0.00011707,2]
[339622055,1727759432013,-3350.0,0.00011707,2]
[339622056,1727759432023,-500.0,0.00011712,2]
[339622057,1727759432032,-155.07032936,0.000118,2]
[339622058,1727759432041,-1295.51,0.00011805,2]
[339622059,1727759432050,-293.56,0.00011945,2]
[339622060,1727759432060,-1519.67,0.00012041,2]
[339622061,1727759432069,-423.21,0.00012041,2]
[339622062,1727759432078,-423.21,0.00012041,2]
[339622063,1727759432087,-423.21,0.00012041,2]
[339622064,1727759432096,-173.63,0.00012055,2]
[339622065,1727759432106,-533.85,0.00012178,2]
[339622066,1727759432115,-150.0,0.00012178,2]
[339622067,1727759432125,-533.85,0.00012178,2]
[339622068,1727759432134,-533.85,0.00012178,2]
[339622069,1727759432144,-533.85,0.00012178,2]
[339622070,1727759432154,-533.85,0.00012178,2]
[339622071,1727759432164,-533.85,0.00012178,2]
[339622072,1727759432177,-533.85,0.00012178,2]
[339622073,1727759432186,-533.85,0.00012178,2]
[339622074,1727759432195,-533.85,0.00012178,2]
[339622075,1727759432207,-150.0,0.00012233,2]
[339622076,1727759432217,-2266.0,0.00012296,2]
[339622077,1727759432226,-155.07032936,0.000123,2]
[339622078,1727759432236,-200.0,0.000125,2]
[339622079,1727759432245,-1007.24,0.000125,2]
[339622080,1727759432256,-150.0,0.00012629,2]
[339622081,1727759432266,-150.0,0.00012631,2]
[339622082,1727759432275,-150.0,0.00012633,2]
[339622083,1727759432284,-150.0,0.00012633,2]
[339622084,1727759432294,-150.0,0.00012634,2]
[339622085,1727759432303,-150.0,0.00012638,2]
[339622086,1727759432312,-150.0,0.00012642,2]
[339622087,1727759432321,-150.0,0.00012646,2]
[339622088,1727759432331,-150.0,0.00012646,2]
[339622089,1727759432340,-150.0,0.00012646,2]
[339622090,1727759432350,-150.0,0.00012647,2]
[339622091,1727759432359,-150.0,0.00012649,2]
[339622092,1727759432368,-150.0,0.00012657,2]
[339622093,1727759432378,-150.0,0.00012663,2]
[339622094,1727759432387,-150.0,0.00012668,2]
[339622095,1727759432397,-150.0,0.00012669,2]
[339622096,1727759432407,-150.0,0.00012672,2]
[339622097,1727759432417,-150.0,0.00012672,2]
[339622098,1727759432426,-150.0,0.00012673,2]
[339622099,1727759432436,-150.0,0.00012679,2]
[339622100,1727759432446,-150.0,0.00012679,2]
[339622101,1727759432457,-150.0,0.0001268,2]
[339622102,1727759432466,-150.0,0.00012685,2]
[339622103,1727759432476,-150.0,0.00012685,2]
[339622104,1727759432487,-150.0,0.00012694,2]
[339622105,1727759432496,-150.0,0.00012694,2]
[339622106,1727759432505,-150.0,0.00012694,2]
[339622107,1727759432516,-150.0,0.00012695,2]
[339622108,1727759432526,-150.0,0.00012696,2]
[339622109,1727759432535,-150.0,0.00012696,2]
[339622110,1727759432545,-150.0,0.00012699,2]
[339622111,1727759432554,-150.0,0.00012701,2]
[339622112,1727759432564,-150.0,0.00012702,2]
[339622113,1727759432573,-150.0,0.00012704,2]
[339622114,1727759432583,-150.0,0.00012705,2]
[339622115,1727759432592,-150.0,0.00012707,2]
[339622116,1727759432602,-150.0,0.00012709,2]
[339622117,1727759432612,-150.0,0.00012715,2]
[339622118,1727759432622,-150.0,0.00012718,2]
[339622119,1727759432631,-150.0,0.0001272,2]
[339622120,1727759432641,-150.0,0.0001272,2]
[339622121,1727759432650,-150.0,0.00012722,2]
[339622122,1727759432660,-150.0,0.00012736,2]
[339622123,1727759432669,-150.0,0.00012737,2]
[339622124,1727759432679,-150.0,0.00012742,2]
[339622125,1727759432689,-150.0,0.00012742,2]
[339622126,1727759432699,-150.0,0.00012746,2]
[339622127,1727759432709,-150.0,0.00012746,2]
[339622128,1727759432719,-150.0,0.00012747,2]
[339622129,1727759432729,-150.0,0.00012761,2]
[339622130,1727759432739,-150.0,0.00012764,2]
[339622131,1727759432748,-150.0,0.00012769,2]
[339622132,1727759432758,-150.0,0.00012772,2]
[339622133,1727759432768,-150.0,0.00012778,2]
[339622134,1727759432777,-150.0,0.00012779,2]
[339622135,1727759432787,-150.0,0.00012786,2]
[339622136,1727759432796,-164.95,0.0001279,2]
[339622137,1727759432806,-150.0,0.00012791,2]
[339622138,1727759432815,-150.0,0.00012793,2]
[339622139,1727759432825,-150.0,0.00012794,2]
[339622140,1727759432834,-150.0,0.00012795,2]
[339622141,1727759432844,-500.0,0.00012796,2]
[339622142,1727759432854,-150.0,0.00012796,2]
[339622143,1727759432863,-150.0,0.00012799,2]
[339622144,1727759432872,-150.0,0.00012799,2]
[339622145,1727759432882,-393.953,0.000128,2]
[339622146,1727759432891,-172.435,0.000128,2]
[339622147,1727759432901,-32150.50452495,0.000128,2]
[339622152,1727759437797,-150.0,0.00012631,2]
[339622153,1727759437806,-150.0,0.00012635,2]
[339622154,1727759437816,-150.0,0.00012644,2]
[339622155,1727759437826,-150.0,0.0001265,2]
[339622156,1727759437835,-150.0,0.00012654,2]
[339622157,1727759437845,-33.83698246,0.00012654,2]
[339622158,1727759437927,-116.16301754,0.00012654,2]
[339622159,1727759437937,-150.0,0.00012656,2]
[339622160,1727759437948,-150.0,0.00012663,2]
[339622161,1727759437957,-150.0,0.00012667,2]
[339622162,1727759437966,-150.0,0.00012667,2]
[339622163,1727759437976,-150.0,0.00012681,2]
[339622164,1727759437986,-150.0,0.00012682,2]
[339622165,1727759437996,-150.0,0.00012688,2]
[339622166,1727759438005,-150.0,0.00012689,2]
[339622167,1727759438014,-150.0,0.0001269,2]
[339622168,1727759438024,-150.0,0.00012692,2]
[339622169,1727759438033,-150.0,0.00012694,2]
[339622170,1727759438042,-150.0,0.00012695,2]
[339622171,1727759438052,-150.0,0.00012695,2]
[339622172,1727759438062,-150.0,0.000127,2]
[339622173,1727759438072,-150.0,0.00012703,2]
[339622174,1727759438082,-150.0,0.00012711,2]
[339622175,1727759438091,-150.0,0.00012715,2]
[339622176,1727759438101,-150.0,0.00012718,2]
[339622177,1727759438111,-150.0,0.0001272,2]
[339622178,1727759438121,-150.0,0.00012724,2]
[339622179,1727759438130,-150.0,0.00012726,2]
[339622180,1727759438139,-150.0,0.00012726,2]
[339622181,1727759438149,-150.0,0.00012736,2]
[339622182,1727759438158,-150.0,0.00012737,2]
[339622183,1727759438168,-150.0,0.00012747,2]
[339622184,1727759438179,-150.0,0.00012748,2]
[339622185,1727759438189,-150.0,0.00012754,2]
[339622186,1727759438199,-150.0,0.00012761,2]
[339622187,1727759438210,-150.0,0.00012761,2]
[339622188,1727759438221,-150.0,0.00012764,2]
[339622189,1727759438231,-150.0,0.00012771,2]
[339622190,1727759438240,-150.0,0.00012775,2]
[339622191,1727759438249,-150.0,0.00012777,2]
[339622192,1727759438260,-150.0,0.00012782,2]
[339622193,1727759438270,-150.0,0.00012793,2]
[339622194,1727759438280,-189128.19496213,0.000128,2]
[339622195,1727759438289,-339.26762,0.000128,2]
[339622196,1727759438299,-155.07032936,0.000128,2]
[339622197,1727759438308,-10348.17492827,0.000128,2]
[339622198,1727759438318,-387.81946028,0.000128,2]
[339622199,1727759438328,-2030.31136093,0.000128,2]
[339622200,1727759438337,-150.0,0.00012801,2]
[339622201,1727759438347,-150.0,0.00012804,2]
[339622202,1727759438356,-150.0,0.00012807,2]
[339622203,1727759438366,-800.0,0.00012808,2]
[339622204,1727759438375,-700.0,0.00012808,2]
[339622205,1727759438385,-150.0,0.0001281,2]
[339622206,1727759438394,-150.0,0.00012811,2]
[339622207,1727759438404,-150.0,0.00012812,2]
[339622208,1727759438413,-150.0,0.00012816,2]
[339622209,1727759438424,-150.0,0.00012816,2]
[339622210,1727759438434,-150.0,0.00012817,2]
[339622211,1727759438443,-150.0,0.0001282,2]
[339622212,1727759438454,-150.0,0.00012821,2]
[339622213,1727759438463,-150.0,0.00012824,2]
[339622214,1727759438472,-150.0,0.00012827,2]
[339622215,1727759438481,-150.0,0.00012829,2]
[339622216,1727759438491,-150.0,0.00012829,2]
[339622217,1727759438500,-150.0,0.0001283,2]
[339622218,1727759438509,-150.0,0.0001283,2]
[339622219,1727759438519,-150.0,0.00012831,2]
[339622220,1727759438528,-150.0,0.00012834,2]
[339622221,1727759438537,-150.0,0.00012835,2]
[339622222,1727759438546,-150.0,0.00012835,2]
[339622223,1727759438556,-150.0,0.00012838,2]
[339622224,1727759438565,-150.0,0.00012839,2]
[339622225,1727759438574,-150.0,0.00012842,2]
[339622226,1727759438583,-150.0,0.00012843,2]
[339622227,1727759438593,-150.0,0.00012846,2]
[339622228,1727759438602,-150.0,0.00012846,2]
[339622229,1727759438611,-150.0,0.00012846,2]
[339622230,1727759438621,-150.0,0.00012848,2]
[339622231,1727759438630,-150.0,0.00012849,2]
[339622232,1727759438639,-150.0,0.00012852,2]
[339622233,1727759438649,-150.0,0.00012852,2]
[339622234,1727759438658,-150.0,0.00012854,2]
[339622235,1727759438668,-150.0,0.00012857,2]
[339622236,1727759438677,-150.0,0.00012857,2]
[339622237,1727759438686,-150.0,0.00012858,2]
[339622238,1727759438695,-150.0,0.00012861,2]
[339622239,1727759438705,-150.0,0.00012865,2]
[339622240,1727759438714,-150.0,0.00012866,2]
[339622241,1727759438723,-150.0,0.00012867,2]
[339622242,1727759438732,-150.0,0.00012869,2]
[339622243,1727759438741,-150.0,0.0001287,2]
[339622244,1727759438750,-150.0,0.0001287,2]
[339622245,1727759438759,-150.0,0.0001287,2]
[339622246,1727759438768,-150.49577063,0.00012873,2]
[339622247,1727759438777,-419.1848797,0.00012873,2]
[339622248,1727759438786,-500.0,0.00012873,2]
[339622249,1727759438795,-515.6669376,0.00012873,2]
[339622250,1727759438805,-150.0,0.00012873,2]
[339622251,1727759438814,-529.0,0.00012876,2]
[339622252,1727759438823,-501.87904237,0.00012876,2]
[339622253,1727759438832,-500.0,0.00012876,2]
[339622254,1727759438841,-500.0,0.00012876,2]
[339622255,1727759438851,-150.61411441,0.00012876,2]
[339622256,1727759438859,-500.0,0.00012876,2]
[339622257,1727759438868,-150.0,0.00012877,2]
[339622258,1727759438877,-150.0,0.00012877,2]
[339622259,1727759438886,-150.0,0.00012878,2]
[339622260,1727759438896,-150.0,0.00012879,2]
[339622261,1727759438905,-150.0,0.0001288,2]
[339622262,1727759438914,-150.0,0.0001288,2]
[339622263,1727759438923,-150.0,0.00012882,2]
[339622264,1727759438932,-150.0,0.00012887,2]
[339622265,1727759438942,-150.0,0.00012887,2]
[339622266,1727759438951,-150.0,0.0001289,2]
[339622267,1727759438961,-150.0,0.00012894,2]
[339622268,1727759438970,-150.0,0.00012894,2]
[339622269,1727759438979,-9123.2005364,0.00012894,2]
[339622270,1727759438988,-12751.401988,0.00012894,2]
[339622271,1727759438997,-150.0,0.00012894,2]
[339622272,1727759439006,-150.0,0.00012895,2]
[339622273,1727759439015,-150.0,0.00012895,2]
[339622274,1727759439024,-150.0,0.00012896,2]
[339622275,1727759439034,-150.0,0.00012897,2]
[339622276,1727759439043,-150.0,0.00012898,2]
[339622277,1727759439052,-150.0,0.00012898,2]
[339622278,1727759439062,-150.0,0.00012898,2]
[339622279,1727759439071,-1000.0,0.00012899,2]
[339622280,1727759439080,-1000.0,0.00012899,2]
[339622281,1727759439089,-1000.0,0.00012899,2]
[339622282,1727759439099,-1000.0,0.00012899,2]
[339622283,1727759439108,-635.5521046,0.00012899,2]
[339622284,1727759439117,-500.0,0.00012899,2]
[339622285,1727759439126,-199.30226172,0.00012899,2]
[339622286,1727759439135,-282.3686691,0.00012899,2]
[339622287,1727759439144,-500.0,0.00012899,2]
[339622288,1727759439153,-500.0,0.00012899,2]
[339622289,1727759439163,-500.0,0.00012899,2]
[339622290,1727759439172,-500.0,0.00012899,2]
[339622291,1727759439183,-500.0,0.00012899,2]
[339622292,1727759439193,-500.0,0.00012899,2]
[339622293,1727759439203,-500.0,0.00012899,2]
[339622294,1727759439212,-500.0,0.00012899,2]
[339622295,1727759439222,-500.0,0.00012899,2]
[339622296,1727759439231,-500.0,0.00012899,2]
[339622297,1727759439241,-500.0,0.00012899,2]
[339622298,1727759439250,-500.0,0.00012899,2]
[339622299,1727759439260,-500.0,0.00012899,2]
[339622300,1727759439270,-500.0,0.00012899,2]
[339622301,1727759439280,-500.0,0.00012899,2]
[339622302,1727759439289,-500.0,0.00012899,2]
[339622303,1727759439298,-500.0,0.00012899,2]
[339622304,1727759439308,-500.0,0.00012899,2]
[339622305,1727759439318,-500.0,0.00012899,2]
[339622306,1727759439327,-500.0,0.00012899,2]
[339622307,1727759439336,-500.0,0.00012899,2]
[339622308,1727759439345,-500.0,0.00012899,2]
[339622309,1727759439355,-500.0,0.00012899,2]
[339622310,1727759439364,-473.9693577,0.00012899,2]
[339622311,1727759439373,-500.0,0.00012899,2]
[339622312,1727759439382,-500.0,0.00012899,2]
[339622313,1727759439391,-619.08251004,0.00012899,2]
[339622314,1727759439401,-1328.65415772,0.000129,2]
[339622315,1727759439410,-264279.0255959,0.000129,2]
[339622316,1727759439419,-1000.0,0.000129,2]
[339622317,1727759439428,-683284.30078062,0.000129,2]
[339622320,1727759439708,-150.0,0.00012631,2]
[339622321,1727759439719,-150.0,0.00012636,2]
[339622322,1727759439728,-150.0,0.00012638,2]
[339622323,1727759439737,-150.0,0.00012641,2]
[339622324,1727759439746,-150.0,0.00012658,2]
[339622325,1727759439755,-150.0,0.00012658,2]
[339622326,1727759439763,-150.0,0.00012661,2]
[339622327,1727759439772,-150.0,0.00012662,2]
[339622328,1727759439781,-150.0,0.00012666,2]
[339622329,1727759439790,-150.0,0.0001267,2]
[339622330,1727759439799,-150.0,0.00012671,2]
[339622331,1727759439808,-150.0,0.00012674,2]
[339622332,1727759439817,-150.0,0.00012675,2]
[339622333,1727759439826,-150.0,0.00012679,2]
[339622334,1727759439835,-150.0,0.00012683,2]
[339622335,1727759439844,-150.0,0.000127,2]
[339622336,1727759439853,-150.0,0.00012701,2]
[339622337,1727759439863,-150.0,0.0001271,2]
[339622338,1727759439872,-150.0,0.00012713,2]
[339622339,1727759439881,-150.0,0.00012723,2]
[339622340,1727759439890,-150.0,0.00012726,2]
[339622341,1727759439899,-150.0,0.00012732,2]
[339622343,1727759439908,-150.0,0.00012733,2]
[339622345,1727759439917,-150.0,0.00012737,2]
[339622347,1727759439926,-150.0,0.0001276,2]
[339622349,1727759439936,-150.0,0.00012771,2]
[339622351,1727759439945,-150.0,0.00012776,2]
[339622352,1727759439956,-150.0,0.00012776,2]
[339622354,1727759439965,-150.0,0.00012785,2]
[339622356,1727759439975,-150.0,0.00012794,2]
[339622358,1727759439984,-150.0,0.00012818,2]
[339622360,1727759439993,-150.0,0.00012819,2]
[339622362,1727759440002,-150.0,0.00012839,2]
[339622364,1727759440011,-150.0,0.00012844,2]
[339622365,1727759440020,-150.0,0.00012844,2]
[339622367,1727759440029,-150.0,0.00012848,2]
[339622369,1727759440038,-150.0,0.00012852,2]
[339622371,1727759440047,-150.0,0.00012858,2]
[339622373,1727759440056,-150.0,0.00012862,2]
[339622375,1727759440065,-150.0,0.00012868,2]
[339622377,1727759440074,-150.0,0.00012868,2]
[339622378,1727759440083,-150.0,0.00012875,2]
[339622380,1727759440092,-150.0,0.00012881,2]
[339622382,1727759440101,-150.0,0.00012881,2]
[339622384,1727759440110,-150.0,0.00012883,2]
[339622386,1727759440119,-150.0,0.00012891,2]
[339622388,1727759440128,-150.0,0.00012898,2]
[339622390,1727759440137,-105251.90411632,0.000129,2]
[339622393,1727759440163,-150.0,0.00012707,2]
[339622395,1727759440172,-150.0,0.00012732,2]
[339622397,1727759440185,-4.80225122,0.00012755,2]
[339622400,1727759440206,-145.19774878,0.00012755,2]
[339622402,1727759440214,-150.0,0.00012776,2]
[339622404,1727759440224,-150.0,0.00012869,2]
[339622406,1727759440233,-1125.60225122,0.000129,2]
[339622410,1727759440264,-150.0,0.00012651,2]
[339622411,1727759440273,-150.0,0.00012691,2]
[339622413,1727759440282,-150.0,0.00012775,2]
[339622415,1727759440291,-150.0,0.00012877,2]
[339622417,1727759440300,-476.0,0.000129,2]
[339622517,1727759442627,-150.0,0.00012626,2]
[339622518,1727759442637,-150.0,0.00012626,2]
[339622519,1727759442646,-150.0,0.00012634,2]
[339622520,1727759442655,-150.0,0.00012634,2]
[339622521,1727759442664,-150.0,0.00012637,2]
[339622522,1727759442674,-150.0,0.00012639,2]
[339622523,1727759442683,-150.0,0.00012642,2]
[339622524,1727759442691,-150.0,0.00012642,2]
[339622525,1727759442701,-150.0,0.00012648,2]
[339622526,1727759442716,-150.0,0.00012649,2]
[339622527,1727759442725,-150.0,0.00012652,2]
[339622528,1727759442734,-150.0,0.00012652,2]
[339622529,1727759442743,-150.0,0.00012654,2]
[339622530,1727759442752,-150.0,0.00012655,2]
[339622531,1727759442762,-150.0,0.00012656,2]
[339622532,1727759442771,-150.0,0.00012656,2]
[339622533,1727759442780,-150.0,0.00012657,2]
[339622534,1727759442789,-150.0,0.00012664,2]
[339622535,1727759442798,-150.0,0.00012664,2]
[339622536,1727759442808,-150.0,0.00012671,2]
[339622537,1727759442817,-150.0,0.00012677,2]
[339622538,1727759442827,-150.0,0.00012679,2]
[339622539,1727759442836,-150.0,0.00012685,2]
[339622540,1727759442846,-150.0,0.00012688,2]
[339622541,1727759442856,-150.0,0.00012704,2]
[339622542,1727759442865,-150.0,0.00012707,2]
[339622543,1727759442875,-150.0,0.00012708,2]
[339622544,1727759442884,-150.0,0.00012709,2]
[339622545,1727759442893,-150.0,0.0001271,2]
[339622546,1727759442902,-150.0,0.0001271,2]
[339622547,1727759442911,-150.0,0.00012712,2]
[339622548,1727759443078,-150.0,0.00012713,2]
[339622549,1727759443088,-150.0,0.00012714,2]
[339622550,1727759443097,-150.0,0.00012721,2]
[339622551,1727759443106,-150.0,0.00012725,2]
[339622552,1727759443115,-150.0,0.00012729,2]
[339622553,1727759443124,-150.0,0.00012732,2]
[339622554,1727759443133,-150.0,0.00012732,2]
[339622555,1727759443142,-219.24664472,0.00012737,2]
[339622556,1727759443151,-150.0,0.00012739,2]
[339622557,1727759443161,-150.0,0.00012742,2]
[339622558,1727759443170,-150.0,0.00012742,2]
[339622559,1727759443181,-150.0,0.00012744,2]
[339622560,1727759443191,-150.0,0.00012748,2]
[339622561,1727759443200,-150.0,0.00012757,2]
[339622562,1727759443212,-150.0,0.00012762,2]
[339622563,1727759443221,-150.0,0.00012765,2]
[339622564,1727759443230,-150.0,0.00012769,2]
[339622565,1727759443239,-150.0,0.00012771,2]
[339622566,1727759443248,-150.0,0.00012771,2]
[339622567,1727759443260,-150.0,0.00012774,2]
[339622568,1727759443270,-150.0,0.00012786,2]
[339622569,1727759443279,-150.0,0.00012789,2]
[339622570,1727759443288,-150.0,0.00012792,2]
[339622572,1727759443297,-150.0,0.00012795,2]
[339622573,1727759443306,-150.0,0.00012798,2]
[339622574,1727759443315,-150.0,0.00012805,2]
[339622575,1727759443325,-150.0,0.00012809,2]
[339622576,1727759443335,-150.0,0.0001281,2]
[339622577,1727759443344,-150.0,0.00012812,2]
[339622578,1727759443354,-150.0,0.00012814,2]
[339622579,1727759443363,-150.0,0.00012819,2]
[339622580,1727759443373,-150.0,0.00012824,2]
[339622581,1727759443382,-150.0,0.00012824,2]
[339622582,1727759443391,-150.0,0.00012825,2]
[339622583,1727759443401,-150.0,0.00012827,2]
[339622584,1727759443410,-150.0,0.00012836,2]
[339622585,1727759443420,-150.0,0.00012837,2]
[339622586,1727759443430,-150.0,0.00012837,2]
[339622587,1727759443439,-150.0,0.00012838,2]
[339622588,1727759443449,-150.0,0.0001284,2]
[339622589,1727759443460,-97.36694436,0.00012841,2]
[339622590,1727759443477,-150.0,0.00012691,2]
[339622591,1727759443486,-52.63305564,0.00012841,2]
[339622592,1727759443496,-150.0,0.00012842,2]
[339622593,1727759443506,-150.0,0.00012842,2]
[339622594,1727759443515,-150.0,0.00012843,2]
[339622595,1727759443524,-150.0,0.00012843,2]
[339622596,1727759443534,-150.0,0.00012844,2]
[339622597,1727759443543,-150.0,0.00012848,2]
[339622598,1727759443553,-150.0,0.0001285,2]
[339622599,1727759443562,-150.0,0.0001286,2]
[339622600,1727759443571,-150.0,0.00012862,2]
[339622601,1727759443579,-150.0,0.00012868,2]
[339622602,1727759443589,-150.0,0.0001287,2]
[339622603,1727759443598,-150.0,0.0001287,2]
[339622604,1727759443607,-150.0,0.00012871,2]
[339622605,1727759443616,-150.0,0.00012872,2]
[339622606,1727759443626,-150.0,0.00012873,2]